bitfinex-derivatives/quotes_ETHF0:USTF0_20210405
["timestamp","ask_amount","ask_price","bid_price","bid_amount"]
[1617602861145,13.694,2016.3,2016.2,2.90695]
[1617602863145,16.60095,2016.3,2016.2,2.90695]
[1617602867551,16.60095,2016.3,2015.2,5.16650515]
[1617602867749,19.45625,2016.3,2015.0,5.16714684]
[1617602868148,19.45625,2016.3,2014.8,61.4235]
[1617602868349,2.0,2016.2,2014.8,61.4235]
[1617602869149,2.0,2016.2,2015.2,2.90695]
[1617602869949,14.6819,2016.3,2015.2,2.90695]
[1617602871153,14.6819,2016.3,2016.2,2.90695]
[1617602873159,17.58885,2016.3,2016.2,2.90695]
[1617602874360,17.58885,2016.3,2016.2,0.47695]
[1617602876563,17.58885,2016.3,2015.0,5.18289279]
[1617602876765,19.57815,2016.3,2015.0,5.18289279]
[1617602877166,15.6833,2016.3,2015.6,2.90695]
[1617602877766,13.694,2016.3,2015.6,2.90695]
[1617602879169,2.90695,2015.7,2015.6,2.90695]
[1617602879570,3.90205,2015.7,2015.6,2.90695]
[1617602879770,2.90695,2015.7,2015.6,2.90695]
[1617602880573,5.07545,2015.7,2015.2,5.18265011]
[1617602880775,81.0793,2015.6,2015.0,5.18319798]
[1617602881173,2.0,2015.5,2014.8,5.18347453]
[1617602881372,2.90695,2015.1,2015.0,2.90695]
[1617602881575,5.66955,2015.1,2015.0,2.90695]
[1617602884776,5.66955,2015.1,2014.7,5.18379131]
[1617602885173,13.0079,2015.0,2014.7,5.18379131]
[1617602885373,2.90695,2014.8,2014.7,8.09074131]
[1617602885774,2.90695,2014.8,2014.7,2.90695]
[1617602886075,2.90695,2014.8,2014.7,8.09356366]
[1617602887976,2.90695,2014.8,2014.7,5.18661366]
[1617602889977,13.0079,2015.0,2014.7,5.18661366]
[1617602890176,13.0079,2015.0,2014.6,6.34226289]
[1617602890377,13.0079,2015.0,2014.7,5.18915448]
[1617602891481,2.90695,2014.8,2014.7,5.18915448]
[1617602893179,2.90695,2014.8,2014.5,2.90695]
[1617602893180,2.90695,2014.8,2014.6,5.1891457]
[1617602893381,2.90695,2014.8,2014.5,8.09630477]
[1617602893984,15.66515,2014.8,2014.6,5.1894135]
[1617602895984,15.66515,2014.8,2014.7,5.19541407]
[1617602897286,15.66515,2014.8,2014.5,81.62530053]
[1617602897287,15.66515,2014.8,2014.6,6.34993046]
[1617602897587,15.66515,2014.8,2014.7,6.34984152]
[1617602898690,15.66515,2014.8,2014.6,6.34978867]
[1617602899091,15.66515,2014.8,2014.7,6.34982519]
[1617602899695,15.66515,2014.8,2014.6,6.35074378]
[1617602900596,17.99135,2014.8,2014.6,6.35074378]
[1617602901197,17.99135,2014.8,2014.7,5.19618811]
[1617602902298,17.99135,2014.8,2014.6,5.1963252]
[1617602902799,17.99135,2014.8,2014.7,5.19633837]
[1617602905503,15.66515,2014.8,2014.7,5.19633837]
[1617602906103,15.66515,2014.8,2014.5,81.62644144]
[1617602906104,15.66515,2014.8,2014.6,6.35075147]
[1617602906703,15.66515,2014.8,2014.5,75.27535]
[1617602907105,15.66515,2014.8,2014.6,2.32649328]
[1617602907505,15.66515,2014.8,2014.5,82.79161835]
[1617602908910,15.66515,2014.8,2014.5,75.27535]
[1617602910107,15.66515,2014.8,2014.5,82.79154987]
[1617602910507,15.66515,2014.8,2014.5,75.27535]
[1617602912207,12.7582,2014.8,2014.5,75.27535]
[1617602912409,12.7582,2014.8,2014.5,2.90695]
[1617602912808,12.7582,2014.8,2014.6,7.51295857]
[1617602913009,12.7582,2014.8,2014.6,1.7469]
[1617602913608,12.7582,2014.8,2014.7,0.25427176]
[1617602916615,12.7582,2014.8,2014.7,8.92129981]
[1617602921123,12.7582,2014.8,2014.7,0.25427176]
[1617602921924,12.7582,2014.8,2014.7,8.92230584]
[1617602924927,12.7582,2014.8,2014.7,0.25427176]
[1617602925127,12.7582,2014.8,2014.7,8.92226641]
[1617602925332,12.7582,2014.8,2014.7,8.66799465]
[1617602925730,12.7582,2014.8,2014.7,8.92319006]
[1617602926231,12.7582,2014.8,2014.7,0.25519541]
[1617602926531,12.7582,2014.8,2014.7,8.92342456]
[1617602928434,12.7582,2014.8,2014.7,9.92092456]
[1617602930236,12.7582,2014.8,2014.7,8.92342456]
[1617602930540,12.7582,2014.8,2014.7,0.25519541]
[1617602931338,12.7582,2014.8,2014.6,1.25231115]
[1617602931537,12.7582,2014.8,2014.6,0.25501115]
[1617602931738,12.7582,2014.8,2014.7,0.25500087]
[1617602931938,12.7582,2014.8,2014.6,0.25498903]
[1617602933640,12.7582,2014.8,2014.6,8.92355879]
[1617602934040,12.7582,2014.8,2014.7,0.25459748]
[1617602938648,12.7582,2014.8,2014.7,1.25659748]
[1617602938948,12.7582,2014.8,2014.7,0.25459748]
[1617602941149,12.7582,2014.8,2014.7,1.26049748]
[1617602941349,12.7582,2014.8,2014.7,0.25459748]
[1617602941952,12.7582,2014.8,2014.7,8.92196268]
[1617602942151,13.0079,2015.0,2014.7,10.92196268]
[1617602942351,13.0079,2015.0,2014.7,13.06098299]
[1617602942352,12.0058,2015.0,2014.7,13.06098299]
[1617602942551,6.9255,2015.0,2014.8,0.25362307]
[1617602942751,12.8248,2016.8,2015.0,59.4203]
[1617602942951,12.8248,2016.8,2015.1,2.0]
[1617602943154,12.8248,2016.8,2016.6,5.19854245]
[1617602943350,12.8248,2016.8,2016.6,7.51674245]
[1617602943552,12.8248,2016.8,2016.6,2.3182]
[1617602943752,12.8248,2016.8,2016.6,8.67497012]
[1617602943951,12.8248,2016.8,2016.7,9.26358769]
[1617602944351,12.8248,2016.8,2016.7,2.90695]
[1617602945853,12.8248,2016.8,2016.7,3.1581159]
[1617602946255,12.8248,2016.8,2016.7,11.82381925]
[1617602946855,10.0706,2016.8,2016.7,11.82381925]
[1617602947357,7.3165,2016.8,2016.7,3.1581159]
[1617602947555,65.8426,2018.9,2018.6,78.8082]
[1617602947757,65.8426,2018.9,2018.6,81.6283]
[1617602947958,2.90695,2018.7,2018.6,81.6283]
[1617602948558,2.90695,2018.7,2018.6,2.8201]
[1617602948759,2.90695,2018.7,2018.2,2.90695]
[1617602949459,2.0,2018.6,2018.2,2.90695]
[1617602949860,2.90695,2018.3,2018.2,2.90695]
[1617602950261,2.90695,2018.3,2018.2,2.89695]
[1617602953062,13.227,2019.9,2018.2,2.89695]
[1617602953264,2.0,2019.8,2018.2,2.89695]
[1617602953462,2.0,2019.8,2019.0,72.2998]
[1617602953865,2.90695,2019.1,2019.0,72.2998]
[1617602954864,2.90695,2019.1,2018.8,2.90695]
[1617602955064,2.90695,2019.1,2017.1,5.16215852]
[1617602955065,32.90695,2019.1,2017.1,5.16215852]
[1617602955264,97.02095,2019.1,2017.1,67.3231]
[1617602955565,110.38775,2019.1,2017.1,67.3231]
[1617602955870,110.38775,2019.1,2018.0,2.90695]
[1617602955871,107.4808,2019.1,2018.0,2.90695]
[1617602956467,107.4808,2019.1,2017.1,67.3231]
[1617602957867,107.4808,2019.1,2018.1,2.90695]
[1617602958068,58.2528,2019.1,2018.1,2.90695]
[1617602958267,58.2528,2019.1,2018.3,79.9027]
[1617602958867,58.2528,2019.1,2016.6,5.16309329]
[1617602959068,58.2528,2019.1,2014.7,0.9841]
[1617602959069,77.1071,2018.8,2016.7,79.9624]
[1617602959268,32.0,2018.7,2015.9,7.45851789]
[1617602959469,56.7434,2018.2,2016.3,81.8205]
[1617602959668,32.0,2018.1,2016.3,81.8205]
[1617602959968,32.0,2018.1,2017.2,2.90695]
[1617602960170,58.7902,2018.1,2017.2,2.90695]
[1617602961968,2.90695,2017.3,2017.2,2.90695]
[1617602962569,2.3011,2017.5,2017.2,2.90695]
[1617602962770,13.5953,2017.4,2017.2,2.90695]
[1617602967977,13.5953,2017.4,2017.3,68.8093]
[1617602968678,13.5953,2017.4,2017.2,2.90695]
[1617602970077,2.90695,2017.3,2017.2,2.90695]
[1617602978488,32.90695,2017.3,2015.4,5.14618258]
[1617602978688,75.9011,2016.8,2015.4,5.14618258]
[1617602978888,107.6322,2016.8,2015.2,63.3913]
[1617602979292,2.0,2016.7,2015.2,63.3913]
[1617602979489,45.8246,2016.7,2015.2,63.3913]
[1617602980189,45.8246,2016.7,2016.2,2.90695]
[1617602982194,2.90695,2016.3,2016.2,2.90695]
[1617602982394,5.08605,2016.3,2016.2,2.90695]
[1617602983096,5.08605,2016.3,2015.2,63.3913]
[1617602983296,2.0,2016.2,2015.2,63.3913]
[1617602983495,5.08605,2016.3,2015.2,63.3913]
[1617602984096,5.08605,2016.3,2015.8,2.90695]
[1617602984097,2.1791,2016.3,2015.8,2.90695]
[1617602985096,2.0,2016.2,2015.8,2.90695]
[1617602986097,2.90695,2015.9,2015.8,2.90695]
[1617602991804,2.90695,2015.9,2015.2,63.3913]
[1617602992008,2.90695,2015.9,2014.6,5.15646781]
[1617602992205,81.995,2015.9,2015.3,2.90695]
[1617602992608,13.8303,2015.8,2015.3,2.90695]
[1617602992807,16.5054,2015.8,2015.3,2.90695]
[1617602993909,17.4994,2015.8,2015.3,2.90695]
[1617602994310,2.90695,2015.4,2015.3,2.90695]
[1617603000416,2.90695,2015.4,2014.6,80.9123462]
[1617603000818,2.90695,2015.4,2014.8,5.16821592]
[1617603001819,2.90695,2015.4,2014.7,5.16827332]
[1617603004322,2.90695,2015.4,2015.3,2.90695]
[1617603013636,4.90695,2015.4,2014.6,5.16838616]
[1617603013834,79.0149,2015.1,2014.6,5.16838616]
[1617603014433,4.5841,2015.4,2014.9,2.90695]
[1617603014635,13.9962,2015.0,2014.6,5.16838616]
[1617603014834,77.9877,2014.9,2014.6,5.16838616]
[1617603015035,80.6173,2014.9,2014.3,5.16942918]
[1617603015235,80.6173,2014.9,2014.2,5.16968398]
[1617603015635,2.0,2014.8,2014.2,5.16968398]
[1617603015835,32.0,2014.8,2014.2,5.16968398]
[1617603016035,32.0,2014.8,2014.0,6.31850264]
[1617603016036,32.0,2014.8,2013.9,5.17073428]
[1617603016436,32.0,2014.8,2014.0,2.90695]
[1617603017637,63.6981,2014.7,2014.0,2.90695]
[1617603018438,2.90695,2014.1,2014.0,2.90695]
[1617603019540,3.91155,2014.1,2014.0,2.90695]
[1617603019743,1.0046,2014.1,2014.0,2.90695]
[1617603019940,63.6981,2014.7,2014.0,2.90695]
[1617603020340,63.6981,2014.7,2014.6,2.90695]
[1617603020541,63.6981,2014.7,2013.9,5.17074616]
[1617603020742,2.0,2014.6,2013.9,5.17074616]
[1617603020942,2.0,2014.6,2013.5,59.9542]
[1617603020943,30.0,2014.5,2013.6,5.17131771]
[1617603021141,32.0,2014.5,2013.6,5.17131771]
[1617603021342,60.5242,2014.1,2013.6,5.17131771]
[1617603021544,60.5242,2014.1,2013.4,5.17156878]
[1617603021545,63.3564,2014.1,2013.4,5.17156878]
[1617603022143,13.4053,2014.0,2013.4,5.17156878]
[1617603022345,13.4053,2014.0,2013.8,72.8928]
[1617603022543,13.4053,2014.0,2013.9,2.90695]
[1617603023544,13.4053,2014.0,2013.9,9.8160022]
[1617603023945,13.4053,2014.0,2013.9,4.64375]
[1617603024546,13.4053,2014.0,2013.9,84.10055]
[1617603024947,13.4053,2014.0,2013.9,89.27305219]
[1617603025650,13.4053,2014.0,2013.9,84.10055]
[1617603027050,13.4053,2014.0,2013.9,2.90695]
[1617603027752,13.4053,2014.0,2013.9,5.05095]
[1617603030454,13.4053,2014.0,2013.9,5.30139842]
[1617603030854,13.4053,2014.0,2013.9,11.61104498]
[1617603034961,13.4053,2014.0,2013.9,5.30139842]
[1617603035163,13.4053,2014.0,2013.9,3.15739842]
[1617603035463,13.4053,2014.0,2013.9,2.90695]
[1617603035663,13.4053,2014.0,2013.9,8.06973834]
[1617603036567,13.4053,2014.0,2013.9,2.90695]
[1617603036765,13.4053,2014.0,2013.9,3.1573097]
[1617603036967,15.1835,2014.0,2013.9,8.31859584]
[1617603037766,15.1835,2014.0,2013.9,2.90695]
[1617603039167,15.1835,2014.0,2013.9,8.07419257]
[1617603042769,15.1835,2014.0,2013.9,8.32589539]
[1617603046969,15.1835,2014.0,2013.9,3.15865282]
[1617603047171,15.1835,2014.0,2013.9,2.90695]
[1617603049468,15.1835,2014.0,2013.9,8.08052153]
[1617603049869,15.1835,2014.0,2013.9,2.90695]
[1617603051072,13.4053,2014.0,2013.9,2.90695]
[1617603051571,13.4053,2014.0,2013.9,8.08051928]
[1617603053276,13.4053,2014.0,2013.9,8.33329476]
[1617603053875,13.4053,2014.0,2013.9,3.15972548]
[1617603054976,13.4053,2014.0,2013.9,8.33324493]
[1617603060384,13.4053,2014.0,2013.9,3.15972548]
[1617603063692,16.1494,2014.0,2013.9,3.15972548]
[1617603069300,46.1494,2014.0,2013.9,3.15972548]
[1617603069500,46.1494,2014.0,2013.3,8.64980149]
[1617603069701,63.5424,2013.6,2013.3,8.64980149]
[1617603069901,63.5424,2013.6,2012.3,72.9575]
[1617603069902,93.5424,2013.6,2013.4,6.23262063]
[1617603070101,93.5424,2013.6,2013.4,5.19164591]
[1617603070300,93.5424,2013.6,2013.4,5.05834591]
[1617603070503,93.5424,2013.6,2012.3,81.61036059]
[1617603070702,2.90695,2013.0,2012.3,81.61036059]
[1617603070901,5.67225,2013.0,2012.3,72.9575]
[1617603071401,5.67225,2013.0,2012.4,2.32741483]
[1617603071701,82.58945,2013.0,2012.3,2.32755075]
[1617603071901,83.57345,2013.0,2012.3,2.32755075]
[1617603072103,83.57345,2013.0,2011.8,73.18590596]
[1617603072402,83.57345,2013.0,2011.9,8.65454729]
[1617603072805,83.57345,2013.0,2011.8,64.531]
[1617603072806,80.6665,2013.0,2012.7,2.90695]
[1617603073006,3.7493,2013.0,2012.7,2.90695]
[1617603073206,3.7493,2013.0,2012.9,78.468]
[1617603074609,3.7493,2013.0,2012.9,78.1963]
[1617603074809,6.65625,2013.0,2012.9,78.4486646]
[1617603075209,6.65625,2013.0,2012.9,78.1963]
[1617603078016,5.67225,2013.0,2012.9,78.1963]
[1617603079124,6.67375,2013.0,2012.9,78.1963]
[1617603079521,36.67375,2013.0,2012.9,78.1963]
[1617603079722,36.67375,2013.0,2012.7,2.90695]
[1617603080323,13.6398,2012.9,2012.7,2.90695]
[1617603080524,13.6398,2012.9,2012.7,8.09185836]
[1617603080824,13.6398,2012.9,2012.7,2.90695]
[1617603081726,13.6398,2012.9,2012.7,2.01935]
[1617603081925,13.6398,2012.9,2012.7,7.20427698]
[1617603082625,13.6398,2012.9,2012.7,5.18492698]
[1617603082826,13.6398,2012.9,2012.6,5.18492916]
[1617603082827,43.6398,2012.9,2012.6,5.18492916]
[1617603083425,43.6398,2012.9,2012.7,5.18793521]
[1617603083825,43.6398,2012.9,2012.6,5.18805256]
[1617603084926,2.90695,2012.7,2012.4,9.24790313]
[1617603085126,32.90695,2012.7,2012.6,3.48308022]
[1617603085326,32.90695,2012.7,2012.6,2.61518022]
[1617603085527,57.6787,2012.6,2012.4,6.24175313]
[1617603085727,30.0,2012.5,2011.7,7.49518712]
[1617603085929,32.2917,2012.5,2011.7,7.49518712]
[1617603086129,32.2917,2012.5,2011.1,7.47561132]
[1617603086933,32.2917,2012.5,2012.1,1.94915]
[1617603087331,32.2917,2012.5,2012.1,1.87985]
[1617603088830,2.90695,2012.2,2012.1,1.87985]
[1617603089435,2.90695,2012.2,2010.9,7.4777061]
[1617603089634,2.90695,2012.2,2010.8,67.61753361]
[1617603089833,2.90695,2012.2,2010.8,7.47803361]
[1617603090033,78.9301,2011.8,2010.8,7.47803361]
[1617603090233,81.1561,2011.8,2010.8,7.47803361]
[1617603090434,81.1561,2011.8,2010.7,7.47835229]
[1617603090834,2.226,2011.8,2011.7,2.90695]
[1617603091235,3.2113,2011.8,2011.7,2.90695]
[1617603092839,6.11825,2011.8,2011.7,2.90695]
[1617603094641,3.89225,2011.8,2011.7,2.90695]
[1617603095444,2.90695,2011.8,2011.7,2.90695]
[1617603097044,14.1443,2012.0,2011.7,2.90695]
[1617603097242,14.1443,2012.0,2011.7,8.08556525]
[1617603097643,14.1443,2012.0,2011.7,2.90695]
[1617603098044,14.1443,2012.0,2011.7,8.07939718]
[1617603100548,14.1443,2012.0,2011.9,64.8244]
[1617603101249,14.1443,2012.0,2011.8,5.1720925]
[1617603101649,14.1443,2012.0,2011.9,5.17156041]
[1617603102050,14.1443,2012.0,2011.8,6.32073833]
[1617603103452,14.1443,2012.0,2011.7,2.90695]
[1617603103453,14.1443,2012.0,2011.9,6.32064258]
[1617603103854,14.1443,2012.0,2011.8,6.3205927]
[1617603104452,14.1443,2012.0,2011.9,6.32055038]
[1617603104856,14.1443,2012.0,2011.7,2.90695]
[1617603105255,14.1443,2012.0,2011.9,6.32745514]
[1617603108360,14.1443,2012.0,2011.7,2.90695]
[1617603108862,14.1443,2012.0,2011.8,7.48121813]
[1617603109063,14.1443,2012.0,2011.8,9.50061813]
[1617603109264,14.1443,2012.0,2011.9,7.48101903]
[1617603109664,14.1443,2012.0,2011.8,2.0194]
[1617603109865,14.1443,2012.0,2011.9,2.24879153]
[1617603110063,56.2727,2013.8,2011.9,2.24879153]
[1617603110265,56.2727,2013.8,2013.1,76.7724]
[1617603110466,56.2727,2013.8,2013.1,78.6967]
[1617603111066,2.90695,2014.1,2013.7,2.90695]
[1617603111264,2.90695,2014.1,2013.7,4.85045]
[1617603112869,2.90695,2014.1,2014.0,61.1205]
[1617603113069,2.90695,2014.1,2014.0,64.02745]
[1617603117072,2.90695,2014.1,2014.0,2.90695]
[1617603117474,2.90695,2014.1,2013.5,5.177303]
[1617603117675,2.90695,2014.1,2013.3,5.1774707]
[1617603117676,5.46205,2014.1,2013.3,5.1774707]
[1617603118073,5.46205,2014.1,2013.0,71.3627]
[1617603118874,13.6483,2014.0,2013.0,76.54052626]
[1617603119074,13.6483,2014.0,2013.5,2.90695]
[1617603119075,2.90695,2013.6,2013.5,2.90695]
[1617603119274,5.36255,2013.6,2013.5,2.90695]
[1617603121377,2.90695,2013.6,2013.5,2.90695]
[1617603121579,13.6483,2014.0,2013.5,2.90695]
[1617603123083,13.6483,2014.0,2013.8,2.90695]
[1617603123480,13.6483,2014.0,2013.8,72.07695]
[1617603125081,2.90695,2013.9,2013.8,72.07695]
[1617603125280,2.90695,2013.9,2013.8,69.17]
[1617603126883,13.6483,2014.0,2013.8,69.17]
[1617603127082,13.6483,2014.0,2013.9,2.90695]
[1617603132186,13.6483,2014.0,2013.9,8.09587321]
[1617603132486,13.6483,2014.0,2013.9,2.90695]
[1617603132886,13.6483,2014.0,2013.9,8.09560185]
[1617603133286,13.6483,2014.0,2013.9,2.90695]
[1617603133688,13.6483,2014.0,2013.9,8.09556744]
[1617603134087,13.6483,2014.0,2013.9,2.90695]
[1617603134388,13.6483,2014.0,2013.9,8.09565487]
[1617603136297,13.6483,2014.0,2013.9,2.90695]
[1617603138096,13.6483,2014.0,2013.9,8.09726522]
[1617603138898,13.6483,2014.0,2013.9,2.90695]
[1617603140700,13.6483,2014.0,2013.9,5.37475]
[1617603142502,13.6483,2014.0,2013.9,2.90695]
[1617603142903,13.6483,2014.0,2013.9,8.0975117]
[1617603144107,13.6483,2014.0,2013.9,2.90695]
[1617603145610,13.6483,2014.0,2013.9,9.25080958]
[1617603146010,13.6483,2014.0,2013.9,2.90695]
[1617603146310,13.6483,2014.0,2013.9,9.25080968]
[1617603146712,13.6483,2014.0,2013.9,2.90695]
[1617603149515,13.6483,2014.0,2013.9,9.25667697]
[1617603150114,13.6483,2014.0,2013.9,2.90695]
[1617603151815,13.6483,2014.0,2013.9,9.25676721]
[1617603153014,13.6483,2014.0,2013.9,2.90695]
[1617603154817,13.6483,2014.0,2013.9,9.25414927]
[1617603155217,13.6483,2014.0,2013.9,2.90695]
[1617603155418,15.7285,2014.0,2013.9,2.90695]
[1617603155616,15.7285,2014.0,2013.8,6.34718549]
[1617603156017,15.7285,2014.0,2013.9,5.1936141]
[1617603156216,15.7285,2014.0,2013.7,75.40635056]
[1617603156217,15.7285,2014.0,2013.7,69.0586]
[1617603157216,15.7285,2014.0,2013.8,2.90695]
[1617603159118,15.7285,2014.0,2013.8,8.10076208]
[1617603159317,2.90695,2013.9,2013.8,8.10076208]
[1617603162021,3.91035,2013.9,2013.8,8.10076208]
[1617603162418,2.90695,2013.9,2013.8,2.90695]
[1617603163020,2.90695,2013.9,2013.8,8.10083013]
[1617603164829,3.90125,2013.9,2013.8,8.10083013]
[1617603165028,3.90125,2013.9,2013.8,2.90695]
[1617603166129,6.46615,2013.9,2013.8,5.19422681]
[1617603166531,6.46615,2013.9,2013.7,74.25300446]
[1617603167029,5.47185,2013.9,2013.7,74.25300446]
[1617603169231,6.47725,2013.9,2013.7,74.25300446]
[1617603169433,6.47725,2013.9,2013.8,2.90695]
[1617603169632,5.47185,2013.9,2013.8,2.90695]
[1617603170731,6.47045,2013.9,2013.7,74.25300446]
[1617603171433,6.47045,2013.9,2013.7,77.15995446]
[1617603172238,6.47045,2013.9,2013.7,71.96555]
[1617603173438,6.47045,2013.9,2013.7,77.15990885]
[1617603173638,3.90555,2013.9,2013.7,77.15990885]
[1617603174046,2.90695,2013.9,2013.7,77.15990885]
[1617603175443,2.90695,2013.9,2013.8,5.19424266]
[1617603176043,2.90695,2013.9,2013.7,78.31847604]
[1617603178148,2.90695,2013.9,2013.8,6.35612793]
[1617603181549,2.90695,2013.9,2013.7,71.96555]
[1617603181849,2.90695,2013.9,2013.8,6.35604424]
[1617603183153,2.90695,2013.9,2013.7,78.32186495]
[1617603184351,3.89525,2013.9,2013.7,78.32186495]
[1617603185053,3.89525,2013.9,2013.8,5.20087742]
[1617603185253,3.89525,2013.9,2013.7,74.25968576]
[1617603185853,5.89525,2013.9,2013.7,5.20108576]
[1617603186056,5.89525,2013.9,2013.6,5.20129585]
[1617603186253,81.19585,2013.9,2013.6,5.20129585]
[1617603186756,81.19585,2013.9,2013.5,5.20155081]
[1617603187458,81.19585,2013.9,2013.7,6.37170936]
[1617603187658,79.19585,2013.9,2013.7,6.37170936]
[1617603187858,79.19585,2013.9,2013.8,5.21248153]
[1617603188058,79.19585,2013.9,2013.8,5.13818153]
[1617603188261,3.89525,2013.9,2013.7,6.37078551]
[1617603191566,3.89525,2013.9,2013.6,76.8252]
[1617603191567,3.89525,2013.9,2013.6,83.19603659]
[1617603193171,2.0,2013.8,2013.6,83.19603659]
[1617603193569,2.0,2013.8,2013.6,6.37083659]
[1617603193769,2.0,2013.8,2013.5,6.37103747]
[1617603194771,2.0,2013.8,2012.6,73.872]
[1617603194772,2.0,2013.8,2013.4,6.37141696]
[1617603194971,32.0,2013.8,2013.4,5.45441696]
[1617603195171,63.6091,2013.4,2013.0,6.53655641]
[1617603195371,32.0,2013.3,2013.0,4.63625641]
[1617603195572,32.0,2013.3,2012.1,10.12494029]
[1617603195573,78.5844,2012.7,2012.1,10.12494029]
[1617603195772,30.0,2012.6,2012.1,10.12494029]
[1617603195972,30.0,2012.6,2012.1,9.14294029]
[1617603196175,30.0,2012.6,2012.1,2.90695]
[1617603196573,81.7537,2012.7,2012.1,2.90695]
[1617603197574,2.90695,2012.2,2012.1,2.90695]
[1617603197776,5.51335,2012.2,2012.1,2.90695]
[1617603199983,2.90695,2012.2,2012.1,2.90695]
[1617603200887,0.986,2013.3,2012.7,77.9083]
[1617603201685,2.90695,2012.8,2012.7,77.9083]
[1617603203186,2.90695,2012.8,2012.5,5.20013154]
[1617603203388,4.92635,2012.8,2012.4,5.20019653]
[1617603203587,2.90695,2012.5,2012.4,5.20019653]
[1617603205189,2.986,2013.3,2012.4,5.20019653]
[1617603205389,0.986,2013.3,2012.5,60.8024]
[1617603205589,0.986,2013.3,2012.7,2.90695]
[1617603206292,13.9489,2013.2,2012.7,2.90695]
[1617603207594,2.90695,2012.8,2012.7,2.90695]
[1617603209694,2.90695,2012.8,2012.5,60.8024]
[1617603210995,2.90695,2012.8,2012.4,5.19698913]
[1617603211595,2.90695,2012.8,2012.2,5.19280886]
[1617603211797,2.90695,2012.3,2012.2,5.19280886]
[1617603212997,2.90695,2012.3,2012.1,8.09978866]
[1617603214099,2.90695,2012.3,2012.2,5.19269829]
[1617603214500,73.9567,2013.0,2012.2,5.19269829]
[1617603214700,13.9489,2013.2,2012.2,5.19269829]
[1617603214905,13.9489,2013.2,2012.1,2.90695]
[1617603214906,13.9489,2013.2,2013.0,71.4605]
[1617603215506,13.9489,2013.2,2013.0,69.4605]
[1617603215710,2.90695,2013.1,2013.0,72.36745]
[1617603220714,13.9489,2013.2,2013.0,72.36745]
[1617603220914,13.9489,2013.2,2013.0,74.65425]
[1617603221715,13.9489,2013.2,2013.0,5.19375]
[1617603222515,13.9489,2013.2,2013.0,2.90695]
[1617603222715,13.9489,2013.2,2013.0,8.1002494]
[1617603223115,13.9489,2013.2,2013.0,2.90695]
[1617603223716,13.9489,2013.2,2013.0,8.100277]
[1617603224420,13.9489,2013.2,2013.0,2.90695]
[1617603226521,13.9489,2013.2,2013.0,8.10019918]
[1617603227322,13.9489,2013.2,2013.0,2.90695]
[1617603230824,13.9489,2013.2,2012.9,5.19331959]
[1617603231225,13.9489,2013.2,2012.8,67.03905648]
[1617603231926,13.9489,2013.2,2013.0,2.90695]
[1617603232125,13.9489,2013.2,2012.8,67.03905648]
[1617603232126,43.9489,2013.2,2012.8,5.19345648]
[1617603232326,71.7525,2013.0,2012.8,5.19345648]
[1617603232525,104.1308,2013.0,2012.8,5.648e-05]
[1617603232726,32.3783,2013.0,2012.4,5.19454964]
[1617603232927,34.3783,2013.0,2011.9,6.34981388]
[1617603233127,57.9289,2012.2,2011.9,6.34981388]
[1617603233325,61.0087,2012.2,2011.9,6.34981388]
[1617603233527,61.0087,2012.2,2011.8,6.34766851]
[1617603233727,3.0798,2012.2,2011.8,6.34766851]
[1617603233929,3.0798,2012.2,2012.1,80.0949]
[1617603234128,2.0983,2012.2,2012.1,80.0949]
[1617603234328,57.8671,2012.9,2012.1,80.0949]
[1617603235928,57.8671,2012.9,2012.7,2.90695]
[1617603236529,57.8671,2012.9,2012.1,80.0949]
[1617603237331,59.7612,2012.9,2012.1,80.0949]
[1617603238032,59.7612,2012.9,2012.6,2.90695]
[1617603238233,59.7612,2012.9,2012.1,80.0949]
[1617603239537,1.8941,2012.9,2012.0,6.34751828]
[1617603239937,2.90695,2012.1,2012.0,9.25446828]
[1617603240139,6.73565,2012.1,2012.0,2.90695]
[1617603242736,6.73565,2012.1,2012.0,2.15785]
[1617603243337,6.73565,2012.1,2011.9,5.19410004]
[1617603243537,36.73565,2012.1,2011.9,2.26140004]
[1617603243940,57.7351,2011.9,2011.4,6.34603842]
[1617603244137,57.7351,2011.9,2011.0,9.25329228]
[1617603244138,87.7351,2011.9,2011.0,9.25329228]
[1617603244337,87.7351,2011.9,2011.0,8.99829228]
[1617603244537,87.7351,2011.9,2011.0,2.65195]
[1617603244940,87.7351,2011.9,2011.1,6.3534148]
[1617603245339,87.7351,2011.9,2011.0,6.35386651]
[1617603245539,89.7351,2011.9,2011.0,6.35386651]
[1617603245741,89.7351,2011.9,2010.9,6.35453107]
[1617603246042,2.90695,2011.0,2010.7,6.35475472]
[1617603246243,5.68765,2011.0,2010.7,6.35475472]
[1617603246742,76.9584,2010.9,2010.7,6.35475472]
[1617603246944,76.9584,2010.9,2010.6,9.26212426]
[1617603247946,77.9465,2010.9,2010.6,9.26212426]
[1617603248145,2.90695,2010.7,2010.6,9.26212426]
[1617603248545,2.90695,2010.7,2010.6,9.51253156]
[1617603249747,2.90695,2010.7,2010.6,3.1573573]
[1617603250349,2.90695,2010.7,2010.6,9.51261259]
[1617603252552,14.9777,2010.9,2010.6,72.69831259]
[1617603252953,14.9777,2010.9,2010.6,66.3430573]
[1617603253154,13.9896,2010.9,2010.7,0.24926304]
[1617603253355,13.9896,2010.9,2010.8,6.35451482]
[1617603253755,13.9896,2010.9,2010.8,0.24923778]
[1617603254556,13.9896,2010.9,2010.7,0.24912343]
[1617603255158,13.9896,2010.9,2010.7,6.5926517]
[1617603255756,13.9896,2010.9,2010.8,0.24840364]
[1617603256759,13.9896,2010.9,2010.7,0.24822284]
[1617603257159,13.9896,2010.9,2010.8,0.2482353]
[1617603257462,13.9896,2010.9,2010.7,0.24814816]
[1617603259064,13.9896,2010.9,2010.8,6.34738288]
[1617603259868,13.9896,2010.9,2010.8,6.59518103]